bitfinex-derivatives/quotes_SOLF0:USTF0_20251211
["timestamp","ask_amount","ask_price","bid_price","bid_amount"]
[1765480864759,63.32833968,134.27,134.26,1.83603234]
[1765480864964,63.32833968,134.27,134.26,1.83595981]
[1765480865358,65.67833968,134.27,134.26,1.83595981]
[1765480865562,65.67833968,134.27,134.2,3.06]
[1765480865762,6.7045,134.23,134.2,3.06]
[1765480866061,70.0345057,134.23,134.2,3.06]
[1765480866963,73.06016564,134.23,134.22,1.83268008]
[1765480867373,6.7065,134.19,134.16,3.06]
[1765480867674,63.35632604,134.19,134.16,3.06]
[1765480867871,0.05632604,134.19,134.18,3.06]
[1765480868056,63.3,134.23,134.18,3.06]
[1765480869071,0.04905867,134.22,134.2,3.06]
[1765480869663,2.39905867,134.22,134.19,0.05511248]
[1765480869866,106.6649,134.2,134.14,3.06]
[1765480870067,65.65,134.19,134.14,3.06]
[1765480870265,6.7072,134.18,134.14,3.06]
[1765480870965,0.04808434,134.17,134.14,9.7686]
[1765480871166,0.04808434,134.17,134.15,3.06]
[1765480872980,70.70015994,134.24,134.16,3.06]
[1765480873168,2.4,134.23,134.22,2.116e-05]
[1765480873371,2.4,134.23,134.14,3.06]
[1765480873776,70.70015994,134.24,134.18,3.06]
[1765480873978,0.04925926,134.22,134.2,0.0492979]
[1765480874174,0.04925926,134.22,134.2,3.1092979]
[1765480874974,2.44925926,134.22,134.2,0.0492979]
[1765480875174,2.35,134.2,134.14,3.06]
[1765480875379,2.35,134.2,134.18,1.82063798]
[1765480875576,2.35,134.2,134.14,3.06]
[1765480875772,2.35,134.2,134.17,1.82067526]
[1765480876288,2.35,134.2,134.18,1.82067526]
[1765480876475,2.39718435,134.2,134.14,3.06]
[1765480876678,2.39718435,134.2,134.18,1.81980391]
[1765480877178,0.04718435,134.2,134.17,4.87980391]
[1765480877376,0.048858,134.2,134.18,1.81980391]
[1765480877571,0.048858,134.2,134.17,3.06]
[1765480877767,0.048858,134.2,134.18,1.81931888]
[1765480877972,0.048858,134.2,134.19,1.81931888]
[1765480878181,0.048858,134.2,134.17,3.06]
[1765480878377,0.048858,134.2,134.19,1.81914504]
[1765480878780,2.408858,134.2,134.19,1.81914504]
[1765480879180,2.36,134.19,134.18,1.81914504]
[1765480879382,2.36,134.19,134.18,1.81925148]
[1765480879786,9.78901794,134.2,134.18,1.81925148]
[1765480879980,2.408858,134.2,134.18,1.81925148]
[1765480880182,65.748858,134.2,134.18,1.81925148]
[1765480881579,63.388858,134.2,134.18,1.81925148]
[1765480881784,63.388858,134.2,134.19,1.81925148]
[1765480882180,0.048858,134.2,134.19,4.98925148]
[1765480882381,0.048858,134.2,134.14,3.17]
[1765480883084,2.408858,134.2,134.19,1.82301572]
[1765480883289,2.408858,134.2,134.14,3.17]
[1765480883290,2.408858,134.2,134.18,1.82301572]
[1765480883479,2.408858,134.2,134.19,1.82398012]
[1765480884281,0.048858,134.2,134.19,1.82398012]
[1765480884789,0.048858,134.2,134.14,3.17]
[1765480884995,0.048858,134.2,134.14,9.8788]
[1765480885193,2.408858,134.2,134.15,3.17]
[1765480885494,0.05434101,134.19,134.15,3.17]
[1765480886090,0.05434101,134.19,134.15,9.8783]
[1765480886290,0.05434101,134.19,134.16,3.17]
[1765480890100,7.38015994,134.24,134.16,3.17]
[1765480890303,70.0437,134.25,134.22,4.997353]
[1765480890504,63.34,134.25,134.23,1.827353]
[1765480890701,63.34,134.25,134.24,1.827353]
[1765480891295,63.34,134.25,134.23,0.04759201]
[1765480891697,63.34,134.25,134.24,1.82925665]
[1765480891897,70.0433,134.25,134.24,1.82925665]
[1765480892190,2.41,134.24,134.15,3.17]
[1765480892390,2.41,134.24,134.23,1.83027138]
[1765480893397,0.0535239,134.25,134.23,5.00027138]
[1765480893597,2.36,134.31,134.24,3.17]
[1765480893798,2.36,134.31,134.28,1.83047006]
[1765480894204,2.36,134.29,134.28,1.83047006]
[1765480894606,9.10844813,134.3,134.28,1.83047006]
[1765480896199,6.7013,134.29,134.28,1.83047006]
[1765480897303,6.7013,134.29,134.28,5.00047006]
[1765480897509,0.04764813,134.3,134.28,5.00047006]
[1765480897510,0.04764813,134.3,134.28,3.17]
[1765480897712,0.04764813,134.3,134.29,1.83406983]
[1765480898212,0.04764813,134.3,134.28,3.17]
[1765480900311,0.04764813,134.3,134.27,3.2247938]
[1765480903410,6.74864813,134.3,134.27,3.2247938]
[1765480904108,5.22500933,134.37,134.27,3.2247938]
[1765480904311,9.08930768,134.43,134.27,3.2247938]
[1765480904312,18.45935718,134.58,134.36,7.38015994]
[1765480904511,23.07419648,134.63,134.55,5.994e-05]
[1765480904512,9.18778714,134.61,134.55,5.994e-05]
[1765480904724,103.9994,134.61,134.56,28.77674207]
[1765480905018,103.9556,134.67,134.57,1.83099661]
[1765480905224,107.1962,134.68,134.61,0.04708611]
[1765480905401,103.9349,134.69,134.62,72.15027077]
[1765480905605,103.9231,134.71,134.61,0.04708611]
[1765480905606,103.9231,134.71,134.63,10.73078749]
[1765480905910,103.8985,134.74,134.65,1.81982736]
[1765480905911,103.907,134.73,134.65,1.81982736]
[1765480906111,103.9136,134.72,134.66,8.91027077]
[1765480906319,126.3365,134.7,134.67,8.2830767]
[1765480906506,126.3365,134.7,134.68,0.05177582]
[1765480906507,0.05478714,134.7,134.68,0.05177582]
[1765480906706,0.05478714,134.7,134.61,63.24]
[1765480906707,0.05478714,134.7,134.61,70.06435261]
[1765480907012,63.32,134.76,134.68,1.81087537]
[1765480907205,103.8492,134.8,134.71,1.81087537]
[1765480907406,103.8492,134.8,134.65,11.52023257]
[1765480907407,3.25,134.78,134.67,11.52023257]
[1765480907616,3.30599513,134.74,134.71,1.85350302]
[1765480907815,3.30405793,134.74,134.72,1.8001636]
[1765480908021,3.30405793,134.74,134.73,1.8001636]
[1765480908215,3.30405793,134.74,134.71,0.05505531]
[1765480908512,0.05405793,134.74,134.71,0.05505531]
[1765480909414,11.52023257,134.86,134.71,0.05505531]
[1765480909415,3.08,134.82,134.72,74.70023257]
[1765480909616,3.08,134.82,134.77,1.78197385]
[1765480909815,3.08,134.81,134.64,6.82435261]
[1765480910115,3.08,134.8,134.75,1.78198744]
[1765480910316,3.08,134.78,134.76,0.05202134]
[1765480910712,3.08,134.78,134.68,11.52023257]
[1765480910917,3.08,134.78,134.76,1.77593702]
[1765480911112,3.08,134.78,134.75,1.40151679]
[1765480911904,3.13367859,134.78,134.75,1.45222363]
[1765480912104,3.13367859,134.78,134.76,1.77115786]
[1765480912309,3.13367859,134.78,134.75,0.05070684]
[1765480912810,3.13367859,134.78,134.76,1.7661739]
[1765480913913,3.13367859,134.78,134.75,0.05070684]
[1765480915118,3.13367859,134.78,134.76,1.75839673]
[1765480915415,0.05367859,134.78,134.76,1.75839673]
[1765480915606,0.05367859,134.78,134.75,0.05070684]
[1765480920711,3.18367859,134.78,134.75,0.05070684]
[1765480921018,0.05367859,134.78,134.75,0.05070684]
[1765480924410,103.8051,134.86,134.76,11.52023257]
[1765480924621,3.13,134.84,134.82,1.7403071]
[1765480924813,3.13,134.83,134.82,1.7403071]
[1765480925013,6.6741,134.84,134.82,1.7403071]
[1765480925213,9.8041,134.84,134.83,1.7403071]
[1765480925409,6.6751,134.82,134.77,63.02]
[1765480925608,0.04737805,134.81,134.78,0.0562193]
[1765480925823,6.6731,134.86,134.8,11.52023257]
[1765480926018,3.13,134.88,134.85,1.73751181]
[1765480926316,103.7845,134.89,134.8,11.52023257]
[1765480926317,113.5864,134.89,134.87,1.73751181]
[1765480926523,103.7657,134.91,134.81,103.8393]
[1765480926719,3.13,134.9,134.87,1.73663374]
[1765480926929,3.17743699,134.9,134.89,1.73663374]
[1765480927225,3.13,134.89,134.8,74.54023257]
[1765480927821,103.7883,134.88,134.8,69.6957]
[1765480928126,103.8044,134.86,134.78,21.90465513]
[1765480928332,0.05198945,134.83,134.81,0.05651487]
[1765480929320,0.05198945,134.83,134.81,63.05651487]
[1765480929520,103.7603,134.92,134.81,63.05651487]
[1765480929714,3.13,134.91,134.88,1.73538996]
[1765480929914,106.8677,134.95,134.9,1.73538996]
[1765480930127,3.13,134.94,134.91,1.73538996]
[1765480930327,3.13,134.94,134.92,1.73364439]
[1765480930528,0.05547383,134.94,134.93,1.73364439]
[1765480930826,6.72487383,134.94,134.92,0.04888876]
[1765480931015,3.13,134.93,134.92,0.04888876]
[1765480931620,3.13,134.93,134.79,103.853]
[1765480931817,3.13,134.92,134.91,1.73327814]
[1765480932028,103.7667,134.91,134.82,11.52023257]
[1765480932226,6.6718,134.89,134.83,63.0]
[1765480932631,0.05047271,134.87,134.85,0.05582577]
[1765480933622,3.13,134.94,134.85,1.53582577]
[1765480933825,3.13,134.94,134.91,1.73270789]
[1765480934327,3.13,134.93,134.91,1.73270789]
[1765480934636,3.1780853,134.93,134.91,0.05028648]
[1765480935028,0.0480853,134.93,134.91,0.05028648]
[1765480936732,0.0480853,134.93,134.91,63.03028648]
[1765480937325,0.0480853,134.93,134.91,0.05028648]
[1765480938434,3.13,135.01,134.93,103.7489]
[1765480938638,3.13,135.01,134.98,1.73936832]
[1765480939542,3.18056266,135.01,134.98,1.78626627]
[1765480939740,3.18056266,135.01,134.98,0.04689795]
[1765480939937,3.18056266,135.01,134.98,1.78743023]
[1765480940140,0.05056266,135.01,134.99,1.7403585]
[1765480940935,0.05056266,135.01,135.0,1.7403585]
[1765480942027,3.29,135.05,135.0,1.7403585]
[1765480942228,3.29,135.05,135.01,1.7403585]
[1765480942426,3.29,135.05,135.02,1.7403585]
[1765480942634,3.29,135.05,135.03,1.7403585]
[1765480943132,3.34462412,135.05,135.03,1.79433554]
[1765480943334,3.34462412,135.05,135.04,1.7403585]
[1765480943534,3.34462412,135.05,135.03,0.05397704]
[1765480943939,3.34462412,135.05,135.04,1.74998556]
[1765480944140,0.05462412,135.05,135.04,1.74998556]
[1765480944328,0.05462412,135.05,135.03,0.05397704]
[1765480944527,3.34462412,135.05,135.04,1.75438146]
[1765480945339,3.84016264,135.07,135.04,1.75438146]
[1765480945532,3.29,135.16,135.08,103.6339]
[1765480945737,3.29,135.16,135.11,1.75560636]
[1765480945935,3.29,135.16,135.12,1.75560636]
[1765480946137,14.81023257,135.19,135.13,1.75501074]
[1765480946348,3.29,135.16,135.15,0.04773199]
[1765480946545,3.29,135.16,135.14,0.05259337]
[1765480947041,0.05498869,135.17,135.15,1.75851547]
[1765480947242,0.05498869,135.17,135.14,0.05259337]
[1765480948552,9.9444,135.24,135.14,62.95259337]
[1765480948848,3.29,135.21,135.11,103.6102]
[1765480949034,3.29,135.21,135.12,62.9]
[1765480949239,3.29,135.21,135.11,11.52023257]
[1765480949436,3.29,135.21,135.12,62.9]
[1765480949743,0.05131477,135.18,135.15,0.0566894]
[1765480949946,3.34131477,135.18,135.15,0.0566894]
[1765480950331,3.34131477,135.18,135.15,6.71074312]
[1765480950535,3.34131477,135.18,135.16,5.58872622]
[1765480950843,3.34131477,135.18,135.15,0.0566894]
[1765480951152,0.05131477,135.18,135.15,0.0566894]
[1765480951959,0.05131477,135.18,135.16,12.2690933]
[1765480952447,3.29,135.25,135.17,6.6573]
[1765480952649,3.29,135.25,135.17,6.66836029]
[1765480952949,3.29,135.24,135.17,6.66836029]
[1765480953142,3.29,135.24,135.2,1.77833786]
[1765480953449,3.29,135.22,135.21,5.65437618]
[1765480954241,66.25,135.28,135.21,5.65437618]
[1765480954445,3.29,135.28,135.22,7.37604079]
[1765480954742,3.29,135.28,135.23,7.37604079]
[1765480954940,3.29,135.28,135.17,112.45244705]
[1765480954941,3.29,135.25,135.19,6.66836029]
[1765480955135,3.29,135.25,135.22,1.77528821]
[1765480955338,0.05215895,135.23,135.22,1.77528821]
[1765480955652,3.29,135.29,135.21,103.5313]
[1765480955852,3.29,135.29,135.24,1.77179047]
[1765480956546,3.29,135.27,135.24,1.77179047]
[1765480956748,3.29,135.23,135.17,6.6574]
[1765480957538,3.29,135.27,135.19,0.05657442]
[1765480957951,0.04708558,135.24,135.19,0.05657442]
[1765480958148,3.33708558,135.24,135.21,1.76633349]
[1765480958354,0.04708558,135.24,135.23,1.76633349]
[1765480958545,3.33708558,135.24,135.22,0.04894862]
[1765480958746,3.33708558,135.24,135.23,1.76398747]
[1765480959048,3.33708558,135.24,135.22,0.04894862]
[1765480959947,0.04708558,135.24,135.23,1.76282932]
[1765480960354,0.04708558,135.24,135.22,0.04894862]
[1765480960754,3.33708558,135.24,135.22,0.04894862]
[1765480961055,3.33708558,135.24,135.23,1.76204746]
[1765480961257,3.29,135.23,135.22,0.04894862]
[1765480961646,0.04708558,135.24,135.22,0.04894862]
[1765480961858,0.04708558,135.24,135.23,1.76161173]
[1765480962557,3.33708558,135.24,135.23,1.76161173]
[1765480962749,0.04708558,135.24,135.23,1.76161173]
[1765480963453,3.33708558,135.24,135.23,1.76161173]
[1765480964657,3.29,135.22,135.13,15.55044705]
[1765480964955,3.29,135.2,135.12,103.6008]
[1765480965158,3.29,135.2,135.13,103.5909]
[1765480965356,3.29,135.2,135.14,6.6589]
[1765480965742,0.0540637,135.18,135.17,1.76259863]
[1765480965950,0.0540637,135.18,135.16,0.05567524]
[1765480966151,3.3440637,135.18,135.17,1.76259894]
[1765480966552,3.3440637,135.18,135.16,0.05567524]
[1765480967055,0.0540637,135.18,135.16,0.05567524]
[1765480967252,0.0540637,135.18,135.17,1.76514592]
[1765480967450,0.0540637,135.18,135.16,0.05567524]
[1765480967853,3.29,135.21,135.16,0.05567524]
[1765480968245,3.29,135.21,135.17,1.76677687]
[1765480968460,3.29,135.19,135.16,0.05567524]
[1765480968851,3.05,135.16,135.09,6.6613]
[1765480969050,3.05,135.16,135.14,1.76843841]
[1765480969852,3.09744452,135.16,135.14,0.04939278]
[1765480970158,0.04744452,135.16,135.15,1.77209338]
[1765480971064,62.9,135.22,135.15,105.34899338]
[1765480971364,3.05,135.23,135.2,1.77209338]
[1765480971564,3.05,135.23,135.15,103.5769]
[1765480971763,3.05,135.23,135.2,1.77115956]
[1765480972056,3.05,135.23,135.14,119.71603019]
[1765480972362,3.1060311,135.2,135.18,1.77225265]
[1765480972557,3.1023051,135.2,135.18,0.05328329]
[1765480973160,3.05,135.19,135.09,103.6234]
[1765480973367,3.05,135.19,135.16,1.77491122]
[1765480973660,3.05,135.19,135.09,103.6234]
[1765480973860,3.05,135.16,135.14,1.77569533]
[1765480974154,3.05,135.16,135.14,1.82254674]
[1765480974464,3.10469196,135.16,135.14,0.04685141]
[1765480974765,3.10469196,135.16,135.14,1.82451101]
[1765480974976,3.10469196,135.16,135.14,0.04685141]
[1765480975264,3.10469196,135.16,135.14,1.82450427]
[1765480975459,0.05469196,135.16,135.14,0.04685141]
[1765480975765,3.05,135.15,135.07,103.6387]
[1765480976266,3.05,135.15,135.06,103.6461]
[1765480976668,3.05,135.15,135.12,1.78160198]
[1765480976967,3.10094697,135.15,135.12,1.83585086]
[1765480977160,3.10094697,135.15,135.12,0.05424888]
[1765480977361,3.10094697,135.15,135.12,1.83784102]
[1765480977561,3.10094697,135.15,135.12,0.05424888]
[1765480977762,3.10094697,135.15,135.12,1.83783985]
[1765480977956,3.10094697,135.15,135.13,1.78359097]
[1765480978152,3.10094697,135.15,135.12,0.05424888]
[1765480978355,3.10094697,135.15,135.13,1.78572742]
[1765480980268,3.10094697,135.15,135.12,0.05424888]
[1765480980960,9.75984697,135.15,135.12,0.05424888]
[1765480981159,3.05,135.14,135.12,0.05424888]
[1765480982355,3.05,135.14,135.05,8.83388438]
[1765480982559,3.05,135.14,135.09,1.79583111]
[1765480982763,3.05,135.12,135.09,1.79583111]
[1765480983262,3.10536488,135.12,135.09,1.84836528]
[1765480983460,0.05536488,135.12,135.09,6.71413417]
[1765480983670,0.05536488,135.12,135.1,1.79791857]
[1765480983968,0.05536488,135.12,135.11,1.79791857]
[1765480984270,0.05536488,135.12,135.09,0.05253417]
[1765480984468,0.05536488,135.12,135.11,1.79931027]
[1765480984876,0.05536488,135.12,135.1,6.6609]
[1765480986466,0.05536488,135.12,135.1,15.49478438]
[1765480986771,3.05,135.16,135.12,6.66]
[1765480986962,3.05,135.16,135.14,1.80425703]
[1765480987362,3.05,135.16,135.11,8.83388438]
[1765480987363,3.05,135.16,135.13,1.80425703]
[1765480987564,3.05,135.16,135.13,1.80639089]
[1765480987764,3.10282334,135.16,135.13,1.86068872]
[1765480988071,3.10282334,135.16,135.13,0.05429783]
[1765480988260,3.10282334,135.16,135.13,1.86214134]
[1765480988458,3.10282334,135.16,135.13,0.05429783]
[1765480988772,3.10282334,135.16,135.13,1.8623868]
[1765480988973,3.10282334,135.16,135.13,0.05429783]
[1765480989270,3.10282334,135.16,135.13,1.86265107]
[1765480989464,3.10282334,135.16,135.14,1.80835324]
[1765480990563,0.05282334,135.16,135.14,1.80835324]
[1765480990768,0.05282334,135.16,135.15,1.80835324]
[1765480993177,3.05,135.22,135.15,116.83062658]
[1765480993478,3.05,135.26,135.2,1.80809438]
[1765480993691,3.05,135.26,135.22,1.80809438]
[1765480993875,3.05,135.26,135.2,9.04047192]
[1765480994066,3.27,135.23,135.22,0.0531393]
[1765480994267,3.27,135.23,135.21,0.05559552]
[1765480994471,3.27,135.23,135.16,9.04047192]
[1765480994670,3.27,135.23,135.18,1.8076692]
[1765480994880,3.27,135.21,135.18,1.8076692]
[1765480995474,3.32593305,135.21,135.18,1.85946333]
[1765480995771,3.32593305,135.21,135.18,0.05179413]
[1765480995971,3.32593305,135.21,135.18,1.8596617]
[1765480996176,3.32593305,135.21,135.18,0.05179413]
[1765480996378,3.32593305,135.21,135.18,1.85966197]
[1765480996777,3.32593305,135.21,135.18,0.05179413]
[1765480996977,3.32593305,135.21,135.18,1.85947205]
[1765480997178,3.32593305,135.21,135.18,0.05179413]
[1765480997380,3.32593305,135.21,135.18,10.89971153]
[1765480997578,0.05593305,135.21,135.2,1.80744548]
[1765480997780,0.05593305,135.21,135.18,9.09226605]
[1765480997977,3.32593305,135.21,135.2,1.8067723]
[1765480998984,3.32593305,135.21,135.19,1.8067723]
[1765480999175,0.05593305,135.21,135.2,1.8067723]
[1765480999484,3.17,135.27,135.19,13.25082658]
[1765480999792,3.17,135.27,135.22,1.80579353]
[1765480999793,3.17,135.26,135.22,1.80579353]
[1765480999983,3.17,135.26,135.19,9.02778595]
[1765481000179,3.17,135.24,135.18,9.02778595]
[1765481000489,3.17,135.21,135.2,0.0529467]
[1765481000791,3.17,135.21,135.19,0.05072839]
[1765481002472,3.17,135.2,135.19,0.05072839]
[1765481003285,3.17,135.19,135.14,9.02778595]
[1765481003493,3.17,135.19,135.16,1.80964311]
[1765481003682,3.17,135.19,135.17,1.80964311]
[1765481003880,3.17,135.19,135.15,9.02778595]
[1765481004184,3.21985644,135.18,135.16,1.86012029]
[1765481004390,3.22129014,135.18,135.16,0.05122357]
[1765481004587,3.22129014,135.18,135.16,1.86131247]
[1765481004788,3.22129014,135.18,135.16,0.05122357]
[1765481004983,3.22129014,135.18,135.16,1.86153536]
[1765481005189,3.22129014,135.18,135.16,0.05122357]
[1765481005386,3.22129014,135.18,135.16,1.86250833]
[1765481005587,3.22129014,135.18,135.16,0.05122357]
[1765481005785,3.22129014,135.18,135.16,1.8621854]
[1765481005987,3.22129014,135.18,135.16,0.05122357]
[1765481006189,3.22129014,135.18,135.16,1.86236605]
[1765481006487,3.22129014,135.18,135.16,0.05122357]
[1765481006687,3.22129014,135.18,135.16,1.86220646]
[1765481006879,3.22129014,135.18,135.16,0.05122357]
[1765481007078,3.22129014,135.18,135.16,1.8620908]
[1765481007282,3.22129014,135.18,135.16,0.05122357]
[1765481007480,3.22129014,135.18,135.16,1.86277592]
[1765481007683,3.22129014,135.18,135.16,0.05122357]
[1765481007879,3.22129014,135.18,135.16,1.86277592]
[1765481008085,125.7443,135.23,135.16,1.86277592]
[1765481008086,3.17,135.29,135.2,103.5415]
[1765481008286,3.17,135.29,135.24,1.811177]
[1765481008496,3.17,135.29,135.25,1.811177]
[1765481008707,3.17,135.28,135.23,9.04760117]
[1765481008888,3.17,135.28,135.25,1.80770032]
[1765481009089,3.22449341,135.28,135.25,1.85744275]
[1765481009283,3.22449341,135.28,135.25,0.04974243]
[1765481009495,3.22449341,135.28,135.25,1.85682053]
[1765481009695,3.22449341,135.28,135.25,0.04974243]
[1765481009898,3.22449341,135.28,135.25,1.85685594]
[1765481010194,3.22449341,135.28,135.25,0.04974243]
[1765481010396,3.22449341,135.28,135.25,1.85584933]
[1765481010690,3.22449341,135.28,135.25,0.04974243]
[1765481011288,3.22449341,135.28,135.26,1.80489586]
[1765481011896,3.17,135.27,135.25,0.04974243]
[1765481012591,0.05449341,135.28,135.25,0.04974243]
[1765481012793,3.17,135.33,135.27,1.80294483]
[1765481013006,3.17,135.33,135.31,1.80294483]
[1765481013296,3.17,135.33,135.32,1.80050411]
[1765481013690,0.05343416,135.34,135.32,1.80050411]
[1765481014087,0.05343416,135.34,135.31,0.05473688]
[1765481014088,0.05343416,135.34,135.33,1.80050411]
[1765481014286,0.05343416,135.34,135.31,0.05473688]
[1765481016692,0.05343416,135.34,135.32,6.6501]
[1765481017003,9.8164,135.4,135.31,0.05473688]
[1765481017004,3.17,135.4,135.31,0.05473688]
[1765481017203,3.17,135.4,135.36,1.78986305]
[1765481017597,3.17,135.4,135.37,1.78986305]
[1765481017799,3.22022153,135.4,135.38,1.78986305]
[1765481017997,3.22022153,135.4,135.37,0.04818666]
[1765481018200,0.05022153,135.4,135.38,1.78696319]
[1765481018706,0.05022153,135.4,135.39,1.78696319]
[1765481018907,0.05022153,135.4,135.37,0.04818666]
[1765481019106,0.05022153,135.4,135.38,1.78442383]
[1765481019403,0.05022153,135.4,135.39,1.78442383]
[1765481019600,0.05022153,135.4,135.37,0.04818666]
[1765481019794,0.05022153,135.4,135.39,1.78253561]
[1765481020495,3.79373014,135.44,135.39,1.48]
[1765481020697,3.79373014,135.44,135.38,110.69794581]
[1765481021603,0.05640666,135.42,135.4,6.69642337]
[1765481021790,3.79373014,135.44,135.4,6.69642337]
[1765481022896,0.04531225,135.43,135.4,6.69642337]
[1765481023699,3.21531225,135.43,135.4,0.05032337]
[1765481023909,3.17,135.39,135.29,103.47]
[1765481024304,10.46784581,135.42,135.32,103.4493]
[1765481024503,10.46784581,135.42,135.31,110.75434581]
[1765481024705,3.17,135.39,135.29,110.11727368]
[1765481024903,9.8177,135.38,135.36,1.77291092]
[1765481025100,3.21979684,135.38,135.36,1.82807706]
[1765481025408,3.21979684,135.38,135.36,0.05516614]
[1765481025596,3.21979684,135.38,135.36,1.82752409]
[1765481025795,3.21979684,135.38,135.36,0.05516614]
[1765481025995,3.21979684,135.38,135.36,1.82752409]
[1765481026204,3.21979684,135.38,135.36,0.05516614]
[1765481026408,3.17,135.37,135.36,1.82709389]
[1765481026607,3.17,135.37,135.36,0.05516614]
[1765481027508,3.17,135.37,135.29,6.6516]
[1765481027709,3.17,135.37,135.27,166.2243]
[1765481027710,3.17,135.37,135.34,1.77268449]
[1765481028308,3.17,135.37,135.33,1.77268449]
[1765481028515,3.22408137,135.36,135.34,0.05473431]
[1765481028715,3.22339027,135.36,135.34,0.05473431]
[1765481029311,4.70339027,135.36,135.24,103.5085]
[1765481029516,3.23,135.34,135.3,1.77475733]
[1765481029703,3.23,135.34,135.29,0.00475733]
[1765481029908,3.23,135.31,135.22,62.74]
[1765481030308,3.23,135.27,135.25,0.04953113]
[1765481031614,0.05002224,135.28,135.26,1.77858934]
[1765481032017,0.05002224,135.28,135.26,6.653]
[1765481033122,0.05002224,135.28,135.25,0.04953113]
[1765481033413,3.28002224,135.28,135.25,0.04953113]
[1765481033616,0.05002224,135.28,135.27,1.77920207]
[1765481034507,0.05002224,135.28,135.25,0.04953113]
[1765481034711,3.28002224,135.28,135.25,0.04953113]
[1765481034916,0.05002224,135.28,135.27,1.77992372]
[1765481035117,0.05002224,135.28,135.25,0.04953113]
[1765481038011,0.05002224,135.28,135.25,6.70303113]
[1765481038212,3.28002224,135.28,135.25,0.04953113]
[1765481038515,0.05002224,135.28,135.25,0.04953113]
[1765481040919,3.17002224,135.28,135.27,1.78295399]
[1765481041223,3.17002224,135.28,135.25,0.04953113]
[1765481041224,3.17002224,135.28,135.26,1.42055391]
[1765481041418,3.17002224,135.28,135.18,112.55818402]
[1765481041419,3.12,135.27,135.18,6.64727368]
[1765481042314,0.05512656,135.24,135.23,1.78271383]
[1765481042514,3.17512656,135.24,135.16,6.64727368]
[1765481042709,3.17512656,135.24,135.11,6.64727368]
[1765481042710,3.12,135.21,135.11,6.64727368]
[1765481043118,6.6564,135.2,135.12,6.6599]
[1765481043323,3.12,135.19,135.1,6.64727368]
[1765481043518,3.12,135.19,135.16,1.78550406]
[1765481044027,3.12,135.19,135.16,1.83569584]
[1765481044028,0.05595759,135.19,135.16,1.83569584]
[1765481044220,3.17595759,135.19,135.18,1.78550406]
[1765481044519,0.05595759,135.19,135.16,0.05019178]
[1765481045014,0.05595759,135.19,135.16,6.70819178]
[1765481045411,3.12,135.18,135.17,1.78443508]
[1765481045614,3.12,135.18,135.16,0.05019178]
[1765481047722,3.12,135.11,135.03,6.64727368]
[1765481047919,3.12,135.11,135.06,1.7886856]
[1765481048521,3.12,135.09,135.07,0.05217244]
[1765481049419,3.12,135.08,135.02,103.6771]
[1765481049722,3.12,135.14,135.07,1.786243]
[1765481049926,3.12,135.14,135.1,1.786243]
[1765481050224,3.12,135.14,135.04,103.6574]
[1765481050425,3.12,135.14,135.1,1.78498322]
[1765481050726,3.12,135.12,135.1,1.78498322]
[1765481050912,3.12,135.12,135.1,1.8379778]
[1765481051117,3.12,135.12,135.1,0.05299458]
[1765481051321,3.12,135.12,135.11,1.78364945]
[1765481051932,0.05630848,135.13,135.11,1.78364945]
[1765481052131,0.05630848,135.13,135.12,1.78364945]
[1765481052527,0.05630848,135.13,135.1,0.05299458]
[1765481052730,0.05630848,135.13,135.12,1.78181333]
[1765481053230,0.05630848,135.13,135.1,0.05299458]
[1765481056422,3.17630848,135.13,135.1,0.05299458]
[1765481056723,3.17630848,135.13,135.11,1.77926992]
[1765481058426,3.12,135.11,135.0,103.6922]
[1765481058635,3.12,135.11,134.99,166.5206]
[1765481059338,3.28,135.08,134.99,62.82]
[1765481059531,3.28,135.08,135.06,1.77866067]
[1765481059732,3.33655757,135.08,135.06,1.77866067]
[1765481060834,3.33655757,135.08,135.04,0.05303123]
[1765481061340,3.28,135.06,135.04,0.05303123]
[1765481063236,9.9433,135.06,135.04,0.05303123]
[1765481063435,3.28,135.05,135.04,0.05303123]
[1765481063643,3.28,135.05,134.95,53.2]
[1765481063839,3.28,135.05,135.01,1.77747006]
[1765481064743,3.32749405,135.04,135.02,1.82510105]
[1765481064945,3.32749405,135.04,135.02,0.04860674]